fUST/lending_fUST_20250518
["ID","MTS","AMOUNT","RATE_DAILY","PERIOD"]
[361453855,1747572652168,-450.0,0.00013698,2]
[361453857,1747572652177,-151.0,0.00013698,2]
[361453859,1747572652187,-450.0,0.00013835,2]
[361453861,1747572652196,-151.0,0.00013835,2]
[361453863,1747572652205,-151.0,0.00013835,2]
[361453865,1747572652215,-450.0,0.00013972,2]
[361453867,1747572652224,-151.0,0.00013972,2]
[361453869,1747572652233,-450.0,0.00014109,2]
[361453871,1747572652242,-296.962064,0.00014109,2]
[361453873,1747572652251,-450.0,0.00014246,2]
[361453875,1747572652260,-450.0,0.00014383,2]
[361453877,1747572652270,-84.34522541,0.0001452,2]
[361455655,1747573838035,-337.90960781,0.00012696,2]
[361456339,1747573846128,-1299.25032319,0.00012696,2]
[361456341,1747573846137,-1637.159931,0.00012825,2]
[361456343,1747573846146,-589.25757393,0.00013598,2]
[361456345,1747573846156,-151.0,0.00013698,2]
[361456347,1747573846165,-151.0,0.00013698,2]
[361456349,1747573846176,-151.0,0.00013698,2]
[361456351,1747573846186,-161.185664,0.00013698,2]
[361456353,1747573846195,-151.0,0.00013698,2]
[361456355,1747573846204,-151.0,0.00013698,2]
[361456357,1747573846213,-151.701678,0.00013698,2]
[361456359,1747573846223,-450.0,0.00013698,2]
[361456361,1747573846232,-450.0,0.00013698,2]
[361456363,1747573846241,-224.24726365,0.00013698,2]
[361456365,1747573846251,-415.13294121,0.00013698,2]
[361456367,1747573846263,-34.86705879,0.00013698,2]
[361456370,1747573846281,-450.0,0.00013698,2]
[361456373,1747573846293,-450.0,0.00013698,2]
[361456375,1747573846302,-450.0,0.00013698,2]
[361456377,1747573846311,-370.42812331,0.00013698,2]
[361456379,1747573846321,-450.0,0.00013698,2]
[361456380,1747573846331,-196.0,0.00013698,2]
[361456382,1747573846342,-450.0,0.00013698,2]
[361456385,1747573846352,-450.0,0.00013698,2]
[361456387,1747573846361,-450.0,0.00013698,2]
[361456389,1747573846371,-450.0,0.00013698,2]
[361456391,1747573846380,-450.0,0.00013698,2]
[361456393,1747573846390,-450.0,0.00013698,2]
[361456395,1747573846400,-541.98,0.00013698,2]
[361456397,1747573846410,-450.0,0.00013698,2]
[361456399,1747573846419,-1158.8,0.00013698,2]
[361456401,1747573846429,-822.22,0.00013698,2]
[361456403,1747573846439,-450.0,0.00013698,2]
[361456405,1747573846448,-363.50471902,0.00013698,2]
[361458354,1747574696940,-166.62260403,4.6e-07,2]
[361458355,1747574702365,133.37739597,4.6e-07,2]
[361458413,1747575032249,-166.62260403,4.6e-07,2]
[361458415,1747575032260,-166.62260403,4.7e-07,2]
[361458416,1747575032270,-6267.1656586,0.00012098,2]
[361458417,1747575032279,-664.79557567,0.00012505,2]
[361458418,1747575032289,-300.0,0.00012528,2]
[361458419,1747575032298,-300.0,0.00012529,2]
[361458420,1747575032307,-300.0,0.00012529,2]
[361458421,1747575032317,-300.0,0.00012529,2]
[361458422,1747575032326,-189.0,0.00012529,2]
[361458424,1747575032335,-1775.7568469,0.00012531,2]
[361458426,1747575032344,-13076.5281512,0.00012733,2]
[361458428,1747575032353,-2484.78302604,0.0001369,2]
[361458430,1747575032363,-425.83,0.00013698,2]
[361458432,1747575032372,-450.0,0.00013698,2]
[361458434,1747575032386,-450.0,0.00013698,2]
[361458436,1747575032396,-450.0,0.00013698,2]
[361458438,1747575032407,-450.0,0.00013698,2]
[361458440,1747575032416,-450.0,0.00013698,2]
[361458442,1747575032426,-450.0,0.00013698,2]
[361458445,1747575032436,-450.0,0.00013698,2]
[361458448,1747575032445,-532.95237191,0.00013698,2]
[361458450,1747575032455,-450.0,0.00013698,2]
[361458452,1747575032464,-450.0,0.00013698,2]
[361458454,1747575032474,-450.0,0.00013698,2]
[361458456,1747575032483,-450.0,0.00013698,2]
[361458458,1747575032493,-450.0,0.00013698,2]
[361458460,1747575032502,-156.04,0.00013698,2]
[361458462,1747575032511,-450.0,0.00013698,2]
[361458464,1747575032521,-450.0,0.00013698,2]
[361458466,1747575032530,-847.98,0.00013698,2]
[361458468,1747575032540,-450.0,0.00013698,2]
[361458470,1747575032549,-450.0,0.00013698,2]
[361458472,1747575032559,-1153.38,0.00013698,2]
[361458474,1747575032568,-450.0,0.00013698,2]
[361458476,1747575032578,-539.63,0.00013698,2]
[361458478,1747575032587,-450.0,0.00013698,2]
[361458480,1747575032596,-450.0,0.00013698,2]
[361458482,1747575032606,-450.0,0.00013698,2]
[361458484,1747575032615,-450.0,0.00013698,2]
[361458486,1747575032624,-450.0,0.00013698,2]
[361458488,1747575032633,-1996.54,0.00013698,2]
[361458490,1747575032643,-450.0,0.00013698,2]
[361458492,1747575032653,-450.0,0.00013698,2]
[361458494,1747575032662,-450.0,0.00013698,2]
[361458496,1747575032671,-152.46684851,0.00013698,2]
[361458499,1747575032692,-297.53315149,0.00013698,2]
[361458501,1747575032700,-450.0,0.00013698,2]
[361458503,1747575032710,-450.0,0.00013698,2]
[361458524,1747575032890,-450.0,0.00013698,2]
[361458526,1747575032900,-450.0,0.00013698,2]
[361458528,1747575032909,-450.0,0.00013698,2]
[361458530,1747575032918,-450.0,0.00013698,2]
[361458532,1747575032928,-450.0,0.00013698,2]
[361458534,1747575032938,-450.0,0.00013698,2]
[361458536,1747575032947,-450.0,0.00013698,2]
[361458538,1747575032958,-450.0,0.00013698,2]
[361458540,1747575032967,-450.0,0.00013698,2]
[361458542,1747575032976,-450.0,0.00013698,2]
[361458544,1747575032985,-450.0,0.00013698,2]
[361458546,1747575032997,-996.49,0.00013698,2]
[361458548,1747575033007,-450.0,0.00013698,2]
[361458551,1747575033017,-400.0,0.00013698,2]
[361458553,1747575033026,-450.0,0.00013698,2]
[361458554,1747575033036,-450.0,0.00013698,2]
[361458557,1747575033046,-500.0,0.00013698,2]
[361458558,1747575033055,-385.443299,0.00013699,2]
[361458560,1747575033064,-270.5059553,0.00013699,2]
[361458562,1747575033074,-420.0,0.00013747,2]
[361458565,1747575033083,-408.94208914,0.0001383,2]
[361458567,1747575033093,-154.762587,0.0001383,2]
[361458568,1747575033102,-389.45444027,0.0001383,2]
[361458570,1747575033111,-500.0,0.0001383,2]
[361458572,1747575033121,-500.0,0.0001383,2]
[361458575,1747575033130,-500.0,0.0001383,2]
[361458577,1747575033140,-500.0,0.0001383,2]
[361458579,1747575033149,-500.0,0.0001383,2]
[361458581,1747575033159,-473.94133035,0.0001383,2]
[361458583,1747575033169,-500.0,0.0001383,2]
[361458585,1747575033179,-500.0,0.0001383,2]
[361458587,1747575033188,-500.0,0.0001383,2]
[361458588,1747575033197,-490.55529354,0.0001383,2]
[361458589,1747575033207,-500.0,0.0001383,2]
[361458590,1747575033216,-453.96169492,0.0001383,2]
[361458591,1747575033225,-500.0,0.0001383,2]
[361458592,1747575033235,-500.0,0.0001383,2]
[361458593,1747575033244,-437.87799134,0.00013835,2]
[361458594,1747575033253,-450.0,0.00013835,2]
[361458595,1747575033262,-450.0,0.00013835,2]
[361458596,1747575033271,-450.0,0.00013835,2]
[361458597,1747575033281,-450.0,0.00013835,2]
[361458598,1747575033294,-450.0,0.00013835,2]
[361458599,1747575033303,-450.0,0.00013835,2]
[361458600,1747575033313,-438.19957298,0.00013835,2]
[361458601,1747575033322,-450.0,0.00013835,2]
[361458602,1747575033331,-450.0,0.00013835,2]
[361458603,1747575033340,-847.98,0.00013835,2]
[361458604,1747575033350,-450.0,0.00013835,2]
[361458605,1747575033359,-450.0,0.00013835,2]
[361458606,1747575033369,-1153.38,0.00013835,2]
[361458607,1747575033382,-450.0,0.00013835,2]
[361458608,1747575033392,-539.63,0.00013835,2]
[361458609,1747575033402,-450.0,0.00013835,2]
[361458611,1747575033412,-450.0,0.00013835,2]
[361458613,1747575033423,-450.0,0.00013835,2]
[361458615,1747575033433,-450.0,0.00013835,2]
[361458617,1747575033444,-450.0,0.00013835,2]
[361458619,1747575033454,-1996.54,0.00013835,2]
[361458622,1747575033464,-450.0,0.00013835,2]
[361458624,1747575033474,-453.69983964,0.00013835,2]
[361458625,1747575033485,-450.0,0.00013835,2]
[361458628,1747575033495,-450.0,0.00013835,2]
[361458630,1747575033504,-450.0,0.00013835,2]
[361458632,1747575033514,-450.0,0.00013835,2]
[361458634,1747575033525,-450.0,0.00013835,2]
[361458636,1747575033534,-450.0,0.00013835,2]
[361458638,1747575033544,-450.0,0.00013835,2]
[361458640,1747575033553,-450.0,0.00013835,2]
[361458642,1747575033563,-450.0,0.00013835,2]
[361458643,1747575033572,-450.0,0.00013835,2]
[361458644,1747575033581,-450.0,0.00013835,2]
[361458645,1747575033590,-450.0,0.00013835,2]
[361458646,1747575033599,-450.0,0.00013835,2]
[361458647,1747575033608,-450.0,0.00013835,2]
[361458648,1747575033617,-450.0,0.00013835,2]
[361458649,1747575033627,-996.49,0.00013835,2]
[361458650,1747575033636,-450.0,0.00013835,2]
[361458651,1747575033645,-450.0,0.00013835,2]
[361458652,1747575033655,-450.0,0.00013835,2]
[361458653,1747575033665,-543.71601117,0.000139,2]
[361458654,1747575033675,-450.0,0.00013972,2]
[361458655,1747575033684,-450.0,0.00013972,2]
[361458656,1747575033693,-450.0,0.00013972,2]
[361458657,1747575033703,-450.0,0.00013972,2]
[361458658,1747575033714,-450.0,0.00013972,2]
[361458659,1747575033724,-450.0,0.00013972,2]
[361458660,1747575033733,-450.0,0.00013972,2]
[361458661,1747575033743,-450.0,0.00013972,2]
[361458662,1747575033752,-847.98,0.00013972,2]
[361458663,1747575033761,-450.0,0.00013972,2]
[361458664,1747575033771,-450.0,0.00013972,2]
[361458665,1747575033780,-1153.38,0.00013972,2]
[361458666,1747575033790,-450.0,0.00013972,2]
[361458667,1747575033799,-539.63,0.00013972,2]
[361458668,1747575033808,-450.0,0.00013972,2]
[361458669,1747575033817,-450.0,0.00013972,2]
[361458670,1747575033826,-450.0,0.00013972,2]
[361458672,1747575033835,-450.0,0.00013972,2]
[361458673,1747575033844,-228.01388839,0.00013972,2]
[361458675,1747575033853,-1996.54,0.00013972,2]
[361458677,1747575033862,-211.12561634,0.00013972,2]
[361458679,1747575033871,-450.0,0.00013972,2]
[361458681,1747575033880,-450.0,0.00013972,2]
[361458683,1747575033889,-450.0,0.00013972,2]
[361458685,1747575033899,-450.0,0.00013972,2]
[361458687,1747575033909,-450.0,0.00013972,2]
[361458689,1747575033919,-450.0,0.00013972,2]
[361458691,1747575033928,-450.0,0.00013972,2]
[361458693,1747575033938,-450.0,0.00013972,2]
[361458696,1747575033954,-450.0,0.00013972,2]
[361458698,1747575033968,-450.0,0.00013972,2]
[361458700,1747575033977,-450.0,0.00013972,2]
[361458702,1747575033987,-450.0,0.00013972,2]
[361458704,1747575033997,-450.0,0.00013972,2]
[361458706,1747575034007,-450.0,0.00013972,2]
[361458708,1747575034017,-450.0,0.00013972,2]
[361458710,1747575034026,-996.49,0.00013972,2]
[361458712,1747575034036,-450.0,0.00013972,2]
[361458714,1747575034046,-450.0,0.00013972,2]
[361458717,1747575034056,-450.0,0.00013972,2]
[361458719,1747575034066,-505.16711817,0.00013972,2]
[361458721,1747575034076,-2005.41,0.00014,2]
[361458723,1747575034086,-450.0,0.00014109,2]
[361458725,1747575034096,-450.0,0.00014109,2]
[361458727,1747575034106,-450.0,0.00014109,2]
[361458729,1747575034115,-450.0,0.00014109,2]
[361458731,1747575034125,-450.0,0.00014109,2]
[361458732,1747575034135,-450.0,0.00014109,2]
[361458734,1747575034145,-450.0,0.00014109,2]
[361458736,1747575034155,-209.97187034,0.00014109,2]
[361458737,1747575034166,-847.98,0.00014109,2]
[361458738,1747575034175,-450.0,0.00014109,2]
[361458740,1747575034186,-450.0,0.00014109,2]
[361458742,1747575034195,-1153.38,0.00014109,2]
[361458744,1747575034205,-450.0,0.00014109,2]
[361458746,1747575034215,-539.63,0.00014109,2]
[361458748,1747575034224,-450.0,0.00014109,2]
[361458750,1747575034234,-450.0,0.00014109,2]
[361458752,1747575034244,-450.0,0.00014109,2]
[361458754,1747575034255,-450.0,0.00014109,2]
[361458756,1747575034265,-1996.54,0.00014109,2]
[361458758,1747575034274,-450.0,0.00014109,2]
[361458760,1747575034284,-450.0,0.00014109,2]
[361458762,1747575034294,-450.0,0.00014109,2]
[361458764,1747575034303,-450.0,0.00014109,2]
[361458766,1747575034313,-450.0,0.00014109,2]
[361458768,1747575034323,-450.0,0.00014109,2]
[361458769,1747575034333,-551.55609215,0.00014109,2]
[361458770,1747575034343,-450.0,0.00014109,2]
[361458771,1747575034353,-450.0,0.00014109,2]
[361458772,1747575034363,-450.0,0.00014109,2]
[361458773,1747575034374,-450.0,0.00014109,2]
[361458774,1747575034393,-450.0,0.00014109,2]
[361458775,1747575034403,-450.0,0.00014109,2]
[361458776,1747575034413,-450.0,0.00014109,2]
[361458777,1747575034423,-406.62700111,0.00014109,2]
[361458778,1747575034432,-996.49,0.00014109,2]
[361458780,1747575034443,-450.0,0.00014109,2]
[361458783,1747575034453,-450.0,0.00014109,2]
[361458784,1747575034463,-450.0,0.00014109,2]
[361458785,1747575034473,-206.2208762,0.00014147,2]
[361458786,1747575034482,-450.0,0.00014246,2]
[361458787,1747575034492,-450.0,0.00014246,2]
[361458788,1747575034501,-450.0,0.00014246,2]
[361458789,1747575034512,-133.60367822,0.00014246,2]
[361458792,1747575038266,-450.0,0.00013698,2]
[361458793,1747575038277,-474.08,0.00013698,2]
[361458794,1747575038286,-450.0,0.00013835,2]
[361458795,1747575038295,-474.08,0.00013835,2]
[361458796,1747575038304,-450.0,0.00013972,2]
[361458797,1747575038313,-474.08,0.00013972,2]
[361458798,1747575038323,-450.0,0.00014109,2]
[361458799,1747575038332,-474.08,0.00014109,2]
[361458800,1747575038342,-316.39632178,0.00014246,2]
[361458802,1747575038354,-450.0,0.00014246,2]
[361458804,1747575038368,-450.0,0.00014246,2]
[361458806,1747575038382,-847.98,0.00014246,2]
[361458807,1747575038392,-450.0,0.00014246,2]
[361458808,1747575038402,-450.0,0.00014246,2]
[361458810,1747575038411,-1153.38,0.00014246,2]
[361458812,1747575038422,-450.0,0.00014246,2]
[361458815,1747575038432,-539.63,0.00014246,2]
[361458816,1747575038441,-450.0,0.00014246,2]
[361458820,1747575038451,-450.0,0.00014246,2]
[361458821,1747575038465,-450.0,0.00014246,2]
[361458825,1747575038474,-450.0,0.00014246,2]
[361458826,1747575038485,-1996.54,0.00014246,2]
[361458828,1747575038494,-450.0,0.00014246,2]
[361458831,1747575038504,-450.0,0.00014246,2]
[361458832,1747575038513,-450.0,0.00014246,2]
[361458834,1747575038523,-450.0,0.00014246,2]
[361458836,1747575038533,-450.0,0.00014246,2]
[361458838,1747575038542,-450.0,0.00014246,2]
[361458840,1747575038552,-450.0,0.00014246,2]
[361458842,1747575038561,-450.0,0.00014246,2]
[361458844,1747575038570,-450.0,0.00014246,2]
[361458846,1747575038579,-450.0,0.00014246,2]
[361458848,1747575038589,-450.0,0.00014246,2]
[361458850,1747575038598,-450.0,0.00014246,2]
[361458852,1747575038607,-450.0,0.00014246,2]
[361458854,1747575038617,-996.49,0.00014246,2]
[361458856,1747575038626,-450.0,0.00014246,2]
[361458858,1747575038635,-450.0,0.00014246,2]
[361458860,1747575038646,-450.0,0.00014246,2]
[361458862,1747575038655,-320.0530936,0.00014246,2]
[361458864,1747575038664,-474.08,0.00014246,2]
[361458866,1747575038674,-543.71601113,0.00014279,2]
[361458868,1747575038683,-151.0,0.00014383,2]
[361458870,1747575038693,-450.0,0.00014383,2]
[361458872,1747575038702,-450.0,0.00014383,2]
[361458874,1747575038712,-151.0,0.00014383,2]
[361458876,1747575038721,-450.0,0.00014383,2]
[361458878,1747575038730,-450.0,0.00014383,2]
[361458880,1747575038739,-450.0,0.00014383,2]
[361458882,1747575038748,-450.0,0.00014383,2]
[361458884,1747575038758,-847.98,0.00014383,2]
[361458886,1747575038767,-450.0,0.00014383,2]
[361458888,1747575038776,-450.0,0.00014383,2]
[361458890,1747575038785,-1153.38,0.00014383,2]
[361458892,1747575038794,-450.0,0.00014383,2]
[361458893,1747575038804,-539.63,0.00014383,2]
[361458895,1747575038814,-450.0,0.00014383,2]
[361458898,1747575038823,-161.07399418,0.00014383,2]
[361458900,1747575038836,-288.92600582,0.00014383,2]
[361458902,1747575038845,-377.75663643,0.00014383,2]
[361459252,1747575043356,-924.08,0.00013561,2]
[361459254,1747575043366,-450.0,0.00013698,2]
[361459256,1747575043376,-450.0,0.00013835,2]
[361459258,1747575043386,-450.0,0.00013972,2]
[361459260,1747575043396,-450.0,0.00014109,2]
[361459263,1747575043409,-72.24336357,0.00014383,2]
[361459265,1747575043419,-450.0,0.00014383,2]
[361459267,1747575043428,-374.19355109,0.00014383,2]
[361459272,1747575043469,-1622.34644891,0.00014383,2]
[361459274,1747575043479,-450.0,0.00014383,2]
[361459276,1747575043488,-450.0,0.00014383,2]
[361459278,1747575043498,-450.0,0.00014383,2]
[361459280,1747575043507,-450.0,0.00014383,2]
[361459282,1747575043516,-450.0,0.00014383,2]
[361459284,1747575043525,-450.0,0.00014383,2]
[361459286,1747575043535,-450.0,0.00014383,2]
[361459288,1747575043544,-450.0,0.00014383,2]
[361459305,1747575043695,-450.0,0.00014383,2]
[361459308,1747575043706,-450.0,0.00014383,2]
[361459310,1747575043717,-450.0,0.00014383,2]
[361459312,1747575043728,-450.0,0.00014383,2]
[361459315,1747575043738,-450.0,0.00014383,2]
[361459317,1747575043747,-996.49,0.00014383,2]
[361459319,1747575043758,-421.50675987,0.00014383,2]
[361459320,1747575043767,-450.0,0.00014383,2]
[361459322,1747575043777,-450.0,0.00014383,2]
[361459324,1747575043786,-474.08,0.00014383,2]
[361459326,1747575043796,-151.0,0.0001452,2]
[361459328,1747575043805,-151.0,0.0001452,2]
[361459330,1747575043815,-151.0,0.0001452,2]
[361459332,1747575043824,-151.0,0.0001452,2]
[361459335,1747575043834,-151.0,0.0001452,2]
[361459336,1747575043844,-183.478493,0.0001452,2]
[361459338,1747575043853,-151.0,0.0001452,2]
[361459341,1747575043863,-151.0,0.0001452,2]
[361459342,1747575043871,-183.478493,0.0001452,2]
[361459344,1747575043880,-48.61350522,0.0001452,2]
[361459589,1747575046471,-102.38649478,0.0001452,2]
[361459591,1747575046481,-151.0,0.0001452,2]
[361459593,1747575046490,-151.0,0.0001452,2]
[361459595,1747575046499,-151.517402,0.0001452,2]
[361459597,1747575046508,-450.0,0.0001452,2]
[361459599,1747575046518,-10.96812313,0.0001452,2]
[361461973,1747576084380,-295.5929437,0.00012463,2]
[361461974,1747576086358,-210.90385956,0.00012463,2]
[361461994,1747576232597,-300.0,0.00012337,2]
[361461995,1747576232609,-300.0,0.00012462,2]
[361461996,1747576232618,-198.28144526,0.00012462,2]
[361462171,1747576238366,-961.30081818,0.00012337,2]
[361462438,1747576240941,-40.41773656,0.00012337,2]
[361462440,1747576240951,-1001.71855474,0.00012462,2]
[361462442,1747576240961,-366.6751886,0.00012463,2]
[361462444,1747576240972,-1386.33733367,0.00012463,2]
[361462711,1747576243527,-981.323186,0.00012463,2]
[361462736,1747576246527,-9300.0,0.00012463,2]
[361462737,1747576246539,-11524.21822266,0.00012463,2]
[361465569,1747576405311,-834.94926581,0.00012339,2]
[361465570,1747576405335,-834.94926581,0.00012463,2]
[361465571,1747576405565,-231.0758996,0.00012572,2]
[361465572,1747576405588,-2060.0,0.00013,2]
[361465573,1747576405612,-300.0,0.00013161,2]
[361465574,1747576405635,-12133.42556878,0.00013162,2]
[361465575,1747576440476,-11673.66443122,0.0001303,2]
[361465576,1747576440498,-1526.33556878,0.00013162,2]
[361465577,1747576493459,-3000.0,0.0001303,2]
[361465629,1747577432625,-292.0,0.00011986,2]
[361465631,1747577432635,-292.0,0.00012229,2]
[361465633,1747577432645,-517.0,0.00012229,2]
[361465635,1747577432654,-16858.1328025,0.0001223,2]
[361465637,1747577432664,-1303.8846009,0.0001243,2]
[361465639,1747577432674,-278.0766187,0.00012754,2]
[361465641,1747577432683,-328.34761997,0.00012909,2]
[361465643,1747577432693,-10147.32886244,0.00013162,2]
[361465645,1747577432704,-553.54935225,0.00013412,2]
[361465647,1747577432714,-152.0,0.00013506,2]
[361465649,1747577432725,-323.03681146,0.00013697,2]
[361465651,1747577432734,-500.0,0.00013697,2]
[361465653,1747577432744,-500.0,0.00013697,2]
[361465655,1747577432753,-500.0,0.00013697,2]
[361465657,1747577432763,-500.0,0.00013697,2]
[361465659,1747577432773,-500.0,0.00013697,2]
[361465661,1747577432783,-500.0,0.00013697,2]
[361465663,1747577432793,-500.0,0.00013697,2]
[361465665,1747577432802,-500.0,0.00013697,2]
[361465667,1747577432813,-162.34528584,0.00013697,2]
[361465669,1747577432823,-500.0,0.00013697,2]
[361465671,1747577432833,-187.57991298,0.00013697,2]
[361465673,1747577432843,-500.0,0.00013697,2]
[361465675,1747577432853,-500.0,0.00013697,2]
[361465677,1747577432862,-500.0,0.00013697,2]
[361465679,1747577432872,-366.99607432,0.00013697,2]
[361465681,1747577432882,-564.41726874,0.00013698,2]
[361465683,1747577432893,-201.8076226,0.00013698,2]
[361465685,1747577432902,-450.0,0.00013698,2]
[361465688,1747577432912,-450.0,0.00013698,2]
[361465689,1747577432923,-357.54469676,0.00013698,2]
[361465692,1747577432932,-450.0,0.00013698,2]
[361465693,1747577432942,-450.0,0.00013698,2]
[361465695,1747577432952,-400.0,0.00013698,2]
[361465697,1747577432961,-450.0,0.00013698,2]
[361465700,1747577432971,-481.69763156,0.00013698,2]
[361465701,1747577432981,-400.0,0.00013698,2]
[361465704,1747577432991,-450.0,0.00013698,2]
[361465706,1747577433001,-450.0,0.00013698,2]
[361465708,1747577433013,-450.0,0.00013698,2]
[361465710,1747577433023,-450.0,0.00013698,2]
[361465712,1747577433033,-450.0,0.00013698,2]
[361465714,1747577433042,-450.0,0.00013698,2]
[361465716,1747577433052,-954.82,0.00013698,2]
[361465718,1747577433062,-450.0,0.00013698,2]
[361465720,1747577433072,-400.0,0.00013698,2]
[361465722,1747577433081,-450.0,0.00013698,2]
[361465724,1747577433091,-400.0,0.00013698,2]
[361465726,1747577433100,-400.0,0.00013698,2]
[361465728,1747577433110,-799.48,0.00013698,2]
[361465730,1747577433120,-450.0,0.00013698,2]
[361465732,1747577433129,-450.0,0.00013698,2]
[361465734,1747577433139,-1110.19,0.00013698,2]
[361465736,1747577433148,-475.01,0.00013698,2]
[361465738,1747577433157,-450.0,0.00013698,2]
[361465740,1747577433167,-499.11,0.00013698,2]
[361465742,1747577433177,-450.0,0.00013698,2]
[361465744,1747577433186,-450.0,0.00013698,2]
[361465746,1747577433197,-214.63467896,0.00013698,2]
[361465748,1747577433206,-450.0,0.00013698,2]
[361465750,1747577433217,-450.0,0.00013698,2]
[361465752,1747577433226,-450.0,0.00013698,2]
[361465755,1747577433235,-450.0,0.00013698,2]
[361465757,1747577433246,-450.0,0.00013698,2]
[361465759,1747577433255,-450.0,0.00013698,2]
[361465761,1747577433265,-450.0,0.00013698,2]
[361465763,1747577433274,-450.0,0.00013698,2]
[361465765,1747577433283,-1497.41,0.00013698,2]
[361465767,1747577433292,-371.3455687,0.00013698,2]
[361465769,1747577433301,-450.0,0.00013698,2]
[361465771,1747577433311,-450.0,0.00013698,2]
[361465773,1747577433321,-450.0,0.00013698,2]
[361465775,1747577433331,-450.0,0.00013698,2]
[361465777,1747577433340,-450.0,0.00013698,2]
[361465779,1747577433349,-151.0,0.00013698,2]
[361465781,1747577433359,-450.0,0.00013698,2]
[361465783,1747577433368,-450.0,0.00013698,2]
[361465785,1747577433378,-450.0,0.00013698,2]
[361465787,1747577433387,-450.0,0.00013698,2]
[361465789,1747577433398,-208.67023647,0.00013698,2]
[361465791,1747577433407,-450.0,0.00013698,2]
[361465793,1747577433417,-450.0,0.00013698,2]
[361465795,1747577433426,-450.0,0.00013698,2]
[361465797,1747577433436,-261.62885798,0.00013698,2]
[361465799,1747577433446,-450.0,0.00013698,2]
[361465801,1747577433456,-450.0,0.00013698,2]
[361465803,1747577433466,-450.0,0.00013698,2]
[361465805,1747577433475,-450.0,0.00013698,2]
[361465807,1747577433485,-151.0,0.00013698,2]
[361465809,1747577433494,-450.0,0.00013698,2]
[361465811,1747577433503,-308.83102305,0.00013698,2]
[361465813,1747577433513,-200.32338,0.00013698,2]
[361465815,1747577433522,-233.99705739,0.00013698,2]
[361465817,1747577433531,-200.32338,0.00013698,2]
[361465819,1747577433541,-450.0,0.00013698,2]
[361465821,1747577433551,-450.0,0.00013698,2]
[361465823,1747577433561,-450.0,0.00013698,2]
[361465826,1747577433571,-151.0,0.00013698,2]
[361465827,1747577433580,-210.4543245,0.00013698,2]
[361465831,1747577433606,-239.5456755,0.00013698,2]
[361465833,1747577433616,-400.681335,0.00013699,2]
[361465835,1747577433626,-412.14824212,0.00013789,2]
[361465837,1747577433636,-151.0,0.00013825,2]
[361465839,1747577433645,-151.0,0.00013825,2]
[361465841,1747577433654,-200.32338,0.00013825,2]
[361465843,1747577433663,-200.32338,0.00013825,2]
[361465845,1747577433674,-200.32338,0.00013825,2]
[361465847,1747577433683,-200.32338,0.00013825,2]
[361465849,1747577433693,-151.0,0.00013825,2]
[361465851,1747577433703,-151.0,0.00013825,2]
[361465853,1747577433712,-151.0,0.00013826,2]
[361465855,1747577433721,-794.783374,0.00013826,2]
[361465857,1747577433735,-794.783374,0.00013826,2]